[Event "1st Chessable Sunway Formentera 2022"]
[Site "Formentera Punta Prima"]
[Date "2022.04.29"]
[Round "1"]
[White "Sargsyan, Shant"]
[Black "Lever, Erwan"]
[Result "1-0"]
[ECO "B40"]
[WhiteElo "2641"]
[BlackElo "2209"]
[Annotator "TA"]
[PlyCount "67"]
[EventDate "2022.05.05"]
[EventType "swiss"]
[EventCountry "ESP"]
[SourceTitle "playchess.com"]
[Source "ChessBase"]
[SourceQuality "1"]
[TimeControl "40/5400+30:1800+30"]

{[%evp 9,67,0,-8,-10,2,12,-3,9,45,12,32,30,46,42,62,12,20,22,42,27,34,45,54,53,61,27,45,35,43,39,124,135,131,131,131,129,157,150,161,161,232,245,241,232,310,322,505,466,439,269,269,269,587,563,841,782,869,859,825,737]} 1. e4 {[%emt 0:00:50]} c5 {[%emt 0:00:04]} 2. Nf3 {[%emt 0:00:12]} e6 {[%emt 0:00:05]} 3. c3 {[%emt 0:00:26]} d5 {[%emt 0:00:06]} 4. e5 {[%emt 0:00:13]} d4 {[%emt 0:00:08]} 5. d3 {[%emt 0:00:22]} Nc6 {[%emt 0:00:26]} 6. g3 {[%emt 0:00:16] B40: Sicilian: 2...e6, Unusual lines.} Nge7 {[%emt 0:03:45]} 7. Bg2 {[%emt 0:00:33]} Ng6 {[%emt 0:00:07]} 8. Qe2 {[%emt 0:00:06] The position is equal.} Be7 {[%emt 0:06:44] [#]} 9. Na3 $146 {[%emt 0:02:52]} ({Predecessor:} 9. O-O O-O 10. Re1 dxc3 11. bxc3 b6 12. h4 Ba6 13. h5 Bxd3 14. Qe3 Nh8 15. h6 {1-0 (34) Dubov,D (2711)-Dreev,A (2623) Chess.com INT 2022}) 9... O-O {[%emt 0:00:26]} 10. O-O {[%emt 0:01:04]} dxc3 {[%emt 0:07:42]} 11. bxc3 {[%emt 0:00:11][%cal Bb2c3,Bc3c4,Bc4b5][%mdl 32]} b6 {[%emt 0:00:39]} 12. Rd1 {[%emt 0:04:43]} (12. h4 $14) 12... Ba6 $11 {[%emt 0:00:56]} 13. Bb2 {[%emt 0:08:49]} Rc8 {[%emt 0:00:39]} 14. h4 {[%emt 0:00:26][%cal Bh2h4,Bh4h5,Bh5h6][%mdl 32]} Qc7 {[%emt 0:01:34][%cal Rg6e5]} 15. c4 $1 {[%emt 0:01:00]} Rfd8 {[%emt 0:06:51]} 16. h5 $1 {[%emt 0:00:32]} Nf8 {[%emt 0:00:06]} 17. h6 {[%emt 0:00:19]} (17. Nb5 $5 {[%cal Rb5c7]} Qb8 18. h6 $14) 17... g6 {[%emt 0:01:06]} 18. Nb5 {[%emt 0:01:02]} Bxb5 {[%emt 0:08:39]} 19. cxb5 {[%emt 0:00:07]} Nd4 {[%emt 0:01:21] White now steadily converts the win.} ({Black should play} 19... Nb4 $1 $14) 20. Nxd4 $16 {[%emt 0:01:26]} cxd4 {[%emt 0:00:03]} 21. Rac1 $36 {[%emt 0:00:20][%mdl 2048] White is on the roll.} Qb8 {[%emt 0:03:11]} 22. Rxc8 {[%emt 0:02:19] White is more active.} Qxc8 {[%emt 0:00:07]} 23. Rc1 {[%emt 0:00:14]} Qb8 {[%emt 0:00:18] [#]} 24. Rc4 $1 {[%emt 0:03:15]} Bg5 {[%emt 0:03:41]} (24... Bc5 {keeps fighting.} 25. Qe4 Rd5) 25. Ba3 $18 {[%emt 0:03:29] f4 is the strong threat.} ({Don't play} 25. Rxd4 $6 Rxd4 26. Bxd4 Bxh6 $16) ({Don't do} 25. Bxd4 Bxh6 26. Bb2 Bg7) 25... Bxh6 {[%emt 0:04:10]} 26. f4 {[%emt 0:00:30] Hoping for Qc2.} Bg7 {[%emt 0:06:15]} 27. Qc2 {[%emt 0:02:28] Black must now prevent Bd6.} f6 {[%emt 0:01:56]} (27... Bxe5 $142 28. fxe5 Qxe5) 28. Bd6 {[%emt 0:03:25]} Rxd6 {[%emt 0:01:53]} 29. Rc8 {[%emt 0:00:39]} Qxc8 {[%emt 0:00:03]} 30. Qxc8 {[%emt 0:00:06]} fxe5 {[%emt 0:00:08]} (30... Rd7 {is a better chance.} 31. Bc6 Re7) 31. Bc6 {[%emt 0:00:10] White is clearly winning.} e4 {[%emt 0:15:53]} 32. Qc7 {[%emt 0:00:23][%mdl 64] [#] Trapped Piece} Rd5 {[%emt 0:00:17]} 33. Bxd5 {[%emt 0:00:08]} exd5 {[%emt 0:00:02]} 34. Qxa7 {[%emt 0:00:14] Weighted Error Value: White=0.13 (very precise) /Black=0.41} 1-0

[Event "1st Chessable Sunway Formentera 2022"]
[Site "Formentera Punta Prima"]
[Date "2022.04.29"]
[Round "1"]
[White "Cuenca Jimenez, Jose Fernando"]
[Black "Kovacs, Klara"]
[Result "1-0"]
[ECO "D38"]
[WhiteElo "2551"]
[BlackElo "2108"]
[Annotator "TA"]
[PlyCount "59"]
[EventDate "2022.05.05"]
[EventType "swiss"]
[EventCountry "ESP"]
[SourceTitle "playchess.com"]
[Source "ChessBase"]
[SourceQuality "1"]
[TimeControl "40/5400+30:1800+30"]

{[%evp 9,59,31,32,13,30,25,22,27,35,31,22,16,24,-135,45,30,57,45,90,40,102,102,95,102,101,88,186,120,120,120,135,60,156,157,177,173,187,199,292,291,290,287,517,526,494,509,519,512,479,485,532,516]} 1. d4 {[%emt 0:00:03]} d5 {[%emt 0:02:19]} 2. c4 {[%emt 0:00:14]} e6 {[%emt 0:00:07]} 3. Nf3 {[%emt 0:00:15]} Nf6 {[%emt 0:00:05]} 4. Nc3 {[%emt 0:00:07]} Bb4 {[%emt 0:00:06]} 5. cxd5 {[%emt 0:02:55]} exd5 {[%emt 0:00:07]} 6. Bf4 {[%emt 0:00:05] D38: Queen's Gambit Declined: Ragozin Defence (4 Nf3 Bb4).} O-O {[%emt 0:01:32]} 7. e3 {[%emt 0:02:01]} Bf5 {[%emt 0:04:23]} 8. Qb3 {[%emt 0:03:54] The position is equal.} Bxc3+ {[%emt 0:12:31]} 9. bxc3 {[%emt 0:00:48]} b6 {[%emt 0:00:08]} 10. Bg5 {[%emt 0:05:20]} c6 {[%emt 0:22:13]} 11. c4 $2 {[%emt 0:07:58] [#]} (11. Bh4 $11) 11... Be4 $146 {[%emt 0:05:07]} (11... b5 $1 $17 {And now ...Qa5+ would win.} 12. cxb5 Qa5+ 13. Ke2 Nbd7) ({Predecessor:} 11... b5 12. cxb5 Qa5+ 13. Ke2 Ne4 14. Be7 Re8 15. Bb4 Qxb5+ 16. Ke1 Qb6 17. Nd2 Na6 18. Bxa6 Qxa6 {½-½ (76) Parligras,M (2607)-Alonso Rosell,A (2536) Minsk 2017}) 12. Be2 {[%emt 0:12:22]} Qd6 {[%emt 0:04:07]} 13. O-O {[%emt 0:04:08]} Nbd7 {[%emt 0:01:06]} 14. Rac1 {[%emt 0:03:18]} (14. Bf4 $16 Qe7 15. Nd2) 14... Nh5 {[%emt 0:13:54]} (14... dxc4 $14 15. Bxc4 (15. Qxc4 Qe7 $14) 15... Rac8) 15. Nd2 $16 {[%emt 0:17:54]} Qg6 {[%emt 0:01:32]} 16. Nxe4 {[%emt 0:00:18]} dxe4 {[%emt 0:00:09]} 17. Bh4 {[%emt 0:00:22]} Kh8 {[%emt 0:05:07] [#]} (17... Qh6 $16) 18. Qd1 {[%emt 0:02:23]} ({Better is} 18. c5 $1 $18) 18... Nhf6 {[%emt 0:00:42]} 19. a4 {[%emt 0:01:51]} Qf5 {[%emt 0:01:06]} 20. f4 {[%emt 0:05:48]} (20. Ra1 $16) 20... c5 {[%emt 0:04:44]} (20... exf3 $1 $14 21. Bxf3 Qe6) 21. d5 {[%emt 0:02:04]} h5 {[%emt 0:04:09]} 22. h3 {[%emt 0:00:34][%cal Bh2h3,Bh3g4][%mdl 32]} Kg8 {[%emt 0:01:27]} 23. g4 {[%emt 0:07:07]} hxg4 {[%emt 0:01:16]} (23... Qh7 $142 24. Qe1 (24. gxh5 g6 $16) 24... Qh8) 24. hxg4 $18 {[%emt 0:00:04]} Qg6 {[%emt 0:00:21]} 25. Kf2 {[%emt 0:02:18]} Ne8 $2 {[%emt 0:10:18]} (25... Rfe8 26. g5 Nh7) 26. Be7 {[%emt 0:01:23] Threatens to win with f5. White is clearly winning.} Nd6 {[%emt 0:00:16]} 27. f5 {[%emt 0:00:50]} Nxf5 {[%emt 0:01:58]} 28. gxf5 {[%emt 0:00:12]} Qxf5+ {[%emt 0:00:33]} 29. Ke1 {[%emt 0:00:07]} Qh3 {[%emt 0:01:41]} 30. Bxf8 {[%emt 0:00:10] Weighted Error Value: White=0.22 (precise) /Black=0.41} 1-0

[Event "1st Chessable Sunway Formentera 2022"]
[Site "Formentera Punta Prima"]
[Date "2022.04.29"]
[Round "1"]
[White "Batsiashvili, Nino"]
[Black "Buiza Prieto, Eihartze"]
[Result "1-0"]
[ECO "B38"]
[WhiteElo "2463"]
[BlackElo "2044"]
[Annotator "TA"]
[PlyCount "49"]
[EventDate "2022.05.05"]
[EventType "swiss"]
[EventCountry "ESP"]
[SourceTitle "playchess.com"]
[Source "ChessBase"]
[SourceQuality "1"]
[TimeControl "40/5400+30:1800+30"]

{[%evp 22,49,51,19,35,29,71,74,82,106,122,112,155,157,333,339,416,402,390,366,347,350,572,563,555,549,533,526,522,375]} 1. d4 {[%emt 0:00:03]} Nf6 {[%emt 0:00:14]} 2. c4 {[%emt 0:00:06]} c5 {[%emt 0:00:27]} 3. Nf3 {[%emt 0:00:15]} cxd4 {[%emt 0:02:53]} 4. Nxd4 {[%emt 0:00:24]} Nc6 {[%emt 0:00:13]} 5. Nc3 {[%emt 0:00:24]} g6 {[%emt 0:00:35]} 6. e4 {[%emt 0:02:11]} d6 {[%emt 0:02:09]} 7. Be2 {[%emt 0:06:17]} Bg7 {[%emt 0:00:13]} 8. Be3 {[%emt 0:00:06][%cal Bc1e3,Be3d4,Bd4b6][%mdl 32]} O-O {[%emt 0:04:44]} 9. O-O {[%emt 0:02:32]} Bd7 {[%emt 0:03:06]} 10. h3 {[%emt 0:00:26]} a6 {[%emt 0:00:36]} 11. f4 {[%emt 0:08:23][%cal Bf2f4,Bf4e5][%mdl 32]} Rc8 {[%emt 0:06:28]} 12. Qd2 {[%emt 0:03:42]} Nxd4 {[%emt 0:14:23] B38: Sicilian: Maroczy Bind with 5...Bg7 and 7...0-0.} 13. Bxd4 {[%emt 0:00:05] [#]} ({But not} 13. Qxd4 Nh5 14. Qd3 Ng3 $15) 13... b5 $146 {[%emt 0:04:28]} ({Predecessor:} 13... Bc6 14. Qe3 Nd7 15. e5 Qc7 16. e6 Bxd4 17. exf7+ Rxf7 18. Qxd4 Qb6 19. Qxb6 Nxb6 20. b3 {1-0 (43) Balokas,D (2209)-Lohia,S (1951) Stockholm 2019}) 14. e5 {[%emt 0:02:17]} dxe5 {[%emt 0:03:44] White is better.} 15. fxe5 {[%emt 0:00:10]} Ne8 {[%emt 0:00:29]} 16. Rad1 {[%emt 0:01:05] aiming for Bf2. White is much more active. The black rooks are badly placed.} ({Don't take} 16. cxb5 Bxb5 17. Nxb5 axb5 $14) 16... Bf5 {[%emt 0:19:33]} 17. Nd5 {[%emt 0:16:53] Bb6 is the strong threat.} Nc7 $2 {[%emt 0:15:00] [#]} (17... Be6 $16) 18. Bb6 $1 $18 {[%emt 0:05:12]} Bxe5 {[%emt 0:00:27] [#]} 19. Rxf5 $1 {[%emt 0:00:18][%mdl 512]} gxf5 {[%emt 0:01:29]} (19... Qd6 20. Bxc7) 20. Qg5+ {[%emt 0:00:26]} Kh8 {[%emt 0:01:04]} 21. Qxf5 {[%emt 0:01:59] White threatens Bd3 and mate.} (21. Nxe7 Qe8 $16) 21... f6 $2 {[%emt 0:03:35]} (21... e6 {was necessary.} 22. Qxe5+ f6 23. Nxf6 (23. Bxc7 fxe5 24. Bxd8 Rfxd8 $16) 23... Qxf6 24. Qxf6+ (24. Bxc7 Rxc7 25. Qxc7 Qf2+ 26. Kh2 Qxe2 $18) 24... Rxf6) 22. Nxc7 {[%emt 0:02:07][%mdl 64] Discovered Attack. White is clearly winning.} ({Weaker is} 22. Nxf6 exf6 23. Rxd8 Rcxd8 $16) 22... Bxc7 {[%emt 0:00:45]} 23. Rxd8 {[%emt 0:00:15][%cal Oe2d3] Intending Bd3! and mate.} Bxb6+ {[%emt 0:00:16]} 24. c5 $1 {[%emt 0:00:05]} Bxc5+ {[%emt 0:01:56]} 25. Qxc5 {[%emt 0:00:10] Black got outplayed after the opening.  Weighted Error Value: White=0.02 (flawless) /Black=0.65} 1-0

[Event "1st Chessable Sunway Formentera 2022"]
[Site "Formentera Punta Prima"]
[Date "2022.04.29"]
[Round "1"]
[White "Romanishin, Oleg M"]
[Black "Cafolla, Peter"]
[Result "1-0"]
[ECO "E06"]
[WhiteElo "2400"]
[BlackElo "1936"]
[Annotator "TA"]
[PlyCount "40"]
[EventDate "2022.05.05"]
[EventType "swiss"]
[EventCountry "ESP"]
[SourceTitle "playchess.com"]
[Source "ChessBase"]
[SourceQuality "1"]
[TimeControl "40/5400+30:1800+30"]

{[%evp 17,40,49,45,20,59,66,62,59,86,84,124,105,133,102,110,100,756,766,756,758,819,814,866,860,1577]} 1. d4 {[%emt 0:00:20]} d5 {[%emt 0:07:56]} 2. Nf3 {[%emt 0:00:07]} Nf6 {[%emt 0:00:18]} 3. c4 {[%emt 0:00:07]} e6 {[%emt 0:00:20]} 4. g3 {[%emt 0:00:06]} c5 {[%emt 0:00:06]} 5. Bg2 {[%emt 0:00:12]} Nc6 {[%emt 0:00:45]} 6. O-O {[%emt 0:00:07]} Be7 {[%emt 0:00:50]} 7. dxc5 {[%emt 0:00:07]} Bxc5 {[%emt 0:02:05]} 8. a3 {[%emt 0:00:09]} O-O {[%emt 0:04:18] was the old line (8...a6).} 9. b4 {[%emt 0:00:08]} Be7 {[%emt 0:00:11]} 10. Bb2 {[%emt 0:00:00] E06: Closed Catalan: Early deviations.} a6 {[%emt 0:03:18]} 11. Nbd2 {[%emt 0:01:46][%cal Bb1d2,Bd2b3,Bb3c5][%mdl 32]} b5 {[%emt 0:10:34]} 12. cxd5 {[%emt 0:01:35] White is slightly better.} exd5 {[%emt 0:01:24]} 13. Rc1 {[%emt 0:01:53] [#]} Qb6 $146 {[%emt 0:59:09]} ({Predecessor:} 13... Bb7 14. Ne5 Qb6 15. Nb3 Nxe5 16. Bxe5 Ne4 17. Bc7 Qe6 18. Nd4 Qd7 19. Qd3 Rac8 {0-1 (44) Petukhov,V (2113)-Nasibullin,I (1907) St Petersburg 2014}) 14. Nb3 {[%emt 1:29:32]} Rd8 {[%emt 0:00:00]} 15. Ne5 {[%emt 0:00:00]} Nxe5 {[%emt 0:00:00]} 16. Bxe5 {[%emt 0:00:00] Bc7 is the strong threat.} Ne4 $2 {[%emt 0:00:00][%mdl 8192] [#]} (16... Qe6 $16 17. Qd4 Re8) 17. Bc7 $1 $18 {[%emt 0:00:00] White is clearly winning.} Qe6 {[%emt 0:00:00]} 18. Bxd8 {[%emt 0:00:00]} Bxd8 {[%emt 0:00:00]} 19. Nc5 {[%emt 0:00:00]} Nxc5 {[%emt 0:00:00]} 20. Bxd5 {[%emt 0:00:00]} Qxd5 {[%emt 0:08:15] Black got outplayed after the opening.  Weighted Error Value: White=0.09 (flawless) /Black=0.28 (precise)} 1-0

[Event "1st Chessable Sunway Formentera 2022"]
[Site "Formentera Punta Prima"]
[Date "2022.04.29"]
[Round "1"]
[White "Song, Julien"]
[Black "Munoz Suarez, Luis Alberto"]
[Result "1-0"]
[ECO "E94"]
[WhiteElo "2388"]
[BlackElo "1907"]
[Annotator "TA"]
[PlyCount "81"]
[EventDate "2022.05.05"]
[EventType "swiss"]
[EventCountry "ESP"]
[SourceTitle "playchess.com"]
[Source "ChessBase"]
[SourceQuality "1"]
[TimeControl "40/5400+30:1800+30"]

{[%evp 20,81,64,44,72,68,62,72,175,167,199,174,221,157,181,55,142,111,123,117,124,109,133,37,25,18,113,112,75,85,129,70,77,0,0,-118,-96,-95,-89,-420,204,193,218,228,207,229,284,264,417,241,322,310,318,341,469,474,430,461,866,790,721,663,654,434]} 1. d4 {[%emt 1:30:55]} Nf6 {[%emt 1:30:52]} 2. c4 {[%emt 0:00:00]} g6 {[%emt 0:00:00]} 3. Nc3 {[%emt 0:00:36]} Bg7 {[%emt 0:01:00]} 4. e4 {[%emt 0:00:00]} O-O {[%emt 0:00:00]} 5. Nf3 {[%emt 0:00:00]} d6 {[%emt 0:00:00]} 6. Be2 {[%emt 0:00:00]} Nbd7 {[%emt 0:00:00]} 7. O-O {[%emt 0:00:00]} e5 {[%emt 0:00:00]} 8. Be3 {[%emt 0:00:00]} Re8 {[%emt 0:00:00]} 9. d5 {[%emt 0:00:00]} Ng4 {[%emt 0:00:00]} 10. Bg5 {[%emt 0:00:00] 10.Bd2 is vanishing.} f6 {[%emt 0:00:00]} 11. Bd2 {[%emt 0:00:00]} f5 {[%emt 0:00:00] E94: King's Indian: Classical: 6 Be2 e5 7 0-0: Various Black 7th moves.} 12. exf5 {[%emt 0:00:00]} gxf5 {[%emt 0:00:00]} 13. Ng5 {[%emt 0:00:00]} Nf8 {[%emt 0:00:00]} (13... Ngf6 $16) 14. Bxg4 $18 {[%emt 0:00:00]} fxg4 {[%emt 0:00:00]} 15. f3 $1 {[%emt 0:00:00]} Bf5 {[%emt 0:00:00]} (15... h6 {is a better defense.}) 16. Nge4 {[%emt 0:00:00] Pair of Knights!} Qd7 {[%emt 0:00:00] [#]} 17. Qb3 $146 {[%emt 0:00:00]} ({Better is} 17. Bh6 $1 $18 {[%mdl 512]}) ({Predecessor:} 17. Bh6 Kh8 18. Qd2 Re7 19. Bg5 Rf7 20. fxg4 Bxe4 21. Rxf7 Qxf7 22. Nxe4 Qg6 23. Qe2 {1-0 (34) Hansen,L (2500)-McNab,C (2385) Novi Sad 1990}) 17... Kh8 {[%emt 0:00:00]} (17... Ng6 $1 $14) 18. Bg5 {[%emt 0:00:00] White is much more active. The black rooks are badly placed.} (18. Qxb7 $6 Reb8 19. Qa6 gxf3 20. Rxf3 Rxb2 $14) 18... Ng6 {[%emt 0:00:17]} 19. Nf6 {[%emt 0:00:00]} (19. Qxb7 $6 Reb8 20. Qc6 Qc8 $11) 19... Bxf6 {[%emt 0:00:14]} 20. Bxf6+ {[%emt 0:00:00]} Kg8 {[%emt 0:00:08]} 21. Ne2 {[%emt 0:00:25]} (21. Qxb7 Reb8 22. Qa6 Rxb2 $15) (21. fxg4 $16 Bd3 22. Rf3 (22. Qxb7 $2 Reb8 $17)) 21... Rf8 {[%emt 0:00:43] White must now prevent ...gxf3.} 22. fxg4 {[%emt 0:03:01]} ({Don't blunder} 22. Qxb7 $2 Rab8 23. Qxa7 gxf3 $19) (22. Bg5 {with more complications.} gxf3 23. Qxf3 Bg4 24. Qe4) 22... Rxf6 {[%emt 0:03:05]} (22... Bxg4 $11 {keeps the balance.} 23. Rae1 Bxe2 24. Rxe2 Qg4) 23. gxf5 {[%emt 0:00:12]} ({Don't play} 23. Rxf5 $6 Rxf5 24. gxf5 Qxf5 $14) 23... Rxf5 {[%emt 0:00:17]} 24. Qxb7 {[%emt 0:01:06]} Raf8 {[%emt 0:00:23]} 25. Ng3 {[%emt 0:00:29]} ({White should play} 25. Qxa7 $16 Rxf1+ 26. Rxf1) 25... Rf4 $14 {[%emt 0:01:24]} 26. Qxa7 {[%emt 0:01:56]} (26. Qb3 $1 $16) 26... Qg4 $1 $11 {[%emt 0:02:19]} 27. b3 {[%emt 0:04:05]} (27. Qe3 $11 {remains equal.}) 27... h5 $1 $17 {[%emt 0:00:20][%cal Bh7h5,Bh5h4][%mdl 1056] Black has strong compensation.} 28. Qe3 {[%emt 0:00:34] aiming for h3.} h4 {[%emt 0:01:05]} 29. Nh1 $2 {[%emt 0:00:50][%mdl 8192]} (29. a4 $17 {is more resistant.}) 29... Kg7 $4 {[%emt 0:01:15][%mdl 8192]} (29... Rxf1+ $1 $19 {avoids the disaster.} 30. Rxf1 Nf4) 30. Nf2 $18 {[%emt 0:00:22]} Qf5 {[%emt 0:00:55][%cal Oh4h3] [#]} 31. Qe2 $1 {[%emt 0:00:27]} Rd4 {[%emt 0:01:01] [#]} 32. Nh3 {[%emt 0:00:10]} Nf4 {[%emt 0:00:41]} 33. Nxf4 {[%emt 0:00:02]} exf4 {[%emt 0:00:27]} (33... Rxf4 {keeps fighting.} 34. a4 Qg5 35. Rxf4 Qxf4) 34. Rf3 {[%emt 0:01:27]} (34. Rae1 $142) 34... Re4 {[%emt 0:00:12]} 35. Qf2 {[%emt 0:00:39]} Qg5 {[%emt 0:00:35]} 36. Rf1 {[%emt 0:00:19]} Kh6 {[%emt 0:00:26]} 37. Rh3 {[%emt 0:00:22] White is clearly winning.} f3 {[%emt 0:00:15]} 38. Rxf3 {[%emt 0:00:25][%cal Bh3f3,Bf3f6,Bf6f7][%mdl 32]} Rg8 {[%emt 0:00:18]} (38... Rxf3 $142 39. Qxf3 Qe5) 39. Rf6+ {[%emt 0:00:33]} Kh7 {[%emt 0:00:16]} 40. Rf7+ {[%emt 0:00:00]} Kh6 {[%emt 0:00:00]} 41. Qf6+ {[%emt 0:06:03] Weighted Error Value: White=0.41/Black=0.53} 1-0

[Event "1st Chessable Sunway Formentera 2022"]
[Site "Formentera Punta Prima"]
[Date "2022.04.29"]
[Round "1"]
[White "Papadiamandis, Elliot"]
[Black "Fabregas, Oliver"]
[Result "1/2-1/2"]
[ECO "B56"]
[WhiteElo "2373"]
[BlackElo "1893"]
[Annotator "TA"]
[PlyCount "56"]
[EventDate "2022.05.05"]
[EventType "swiss"]
[EventCountry "ESP"]
[SourceTitle "playchess.com"]
[Source "ChessBase"]
[SourceQuality "1"]
[TimeControl "40/5400+30:1800+30"]

{[%evp 16,56,35,28,28,0,0,0,10,-50,-22,-70,-74,-148,-113,-130,-73,-66,-64,-56,-74,-89,-11,-16,0,0,0,0,0,-1,0,0,0,-37,0,-5,0,-280,0,0,22,-232,0]} 1. e4 {[%emt 0:00:03]} c5 {[%emt 0:00:12]} 2. Nf3 {[%emt 0:00:35]} d6 {[%emt 0:00:07]} 3. d4 {[%emt 0:00:15]} cxd4 {[%emt 0:00:08]} 4. Nxd4 {[%emt 0:00:08]} Nf6 {[%emt 0:00:07]} 5. Nc3 {[%emt 0:00:27]} a6 {[%emt 0:00:06]} 6. Bg5 {[%emt 0:00:29]} Bd7 {[%emt 0:00:07]} 7. Bxf6 {[%emt 0:21:19]} gxf6 {[%emt 0:00:16]} 8. Qh5 {[%emt 0:00:40]} e6 {[%emt 0:17:37]} 9. Bc4 {[%emt 0:01:11]} Qc8 {[%emt 0:05:13] B56: Classical Sicilian: Unusual Lines.} 10. Bb3 {[%emt 0:06:03][%cal Od4f5] With the idea Nf5!} Qc5 {[%emt 0:04:03] Against Nf5} 11. Nf5 {[%emt 0:06:58][%cal Oe1c1]} Nc6 {[%emt 0:09:49] [#] The position is equal.} 12. Qh4 {[%emt 0:06:34]} O-O-O {[%emt 0:15:09]} (12... exf5 $2 13. Qxf6 Be6 14. Qxh8 $18) (12... h5 $5 {[%cal Re6f5]} 13. Ne3 (13. Qxf6 Rg8 $15) 13... Be7 $15) 13. Qxf6 {[%emt 0:07:59]} Rg8 $1 $15 {[%emt 0:03:13] [#]} 14. Qxf7 $146 {[%emt 0:03:22]} ({Predecessor:} 14. Ng3 Bg7 15. Qf3 Ne5 16. Qf4 Ng6 17. Qd2 Bc6 18. Rd1 {0-1 (46) Schroeder,M (2394)-Jankowicz,R (2379) ICCF email 2001}) 14... Rxg2 $17 {[%emt 0:05:29]} 15. Ne3 {[%emt 0:02:25] [#]} Rg7 {[%emt 0:09:33]} (15... Ne5 $142 $1 {[%mdl 512]} 16. Qf4 Rg6) 16. Qf6 {[%emt 0:04:15]} Rg6 $1 {[%emt 0:01:08][%mdl 1024] Black has compensation.} 17. Qh4 {[%emt 0:00:57]} Rh6 {[%emt 0:02:46]} 18. Qf4 {[%emt 0:05:00]} Bg7 {[%emt 0:05:04]} ({Better is} 18... Nd4 $17 {Hoping for ...Rg6.} 19. Qf7 Rh3) 19. O-O-O $11 {[%emt 0:02:29]} Ne5 {[%emt 0:02:08] Against Nc4} 20. Rhg1 {[%emt 0:04:25]} Rf8 $36 {[%emt 0:01:44][%mdl 2048] Black has the initiative.} 21. Qg3 {[%emt 0:10:43]} Rg6 {[%emt 0:01:38]} 22. Qh3 {[%emt 0:00:00] [#] And now Rxg6 would win.} Rh6 {[%emt 0:02:16]} 23. Qf1 {[%emt 0:01:03]} Bh8 {[%emt 0:00:49]} 24. Rg2 {[%emt 0:01:05]} (24. Rg3 $5 {[%cal Rf2f4]}) 24... Rhf6 {[%emt 0:00:29][%cal Oc5e3] Strongly threatening ...Qxe3+!} 25. Qe2 {[%emt 0:00:40]} Ng6 {[%emt 0:01:56] aiming for ...Nf4.} 26. Qg4 {[%emt 0:03:47][%mdl 8192] [#]} (26. Qd2 $11) 26... Ne5 $2 {[%emt 0:02:35]} ({Not} 26... Rxf2 27. Rxf2 Rxf2 28. Qg3 $11) ({Black should play} 26... Nf4 $1 $19 {[%cal Rf4g2]} 27. Rg3 Rg6) 27. Qe2 {[%emt 0:03:53]} Ng6 {[%emt 0:00:10]} 28. Qg4 {[%emt 0:00:36][%mdl 8192] [#]} (28. e5 $11 {and White has nothing to worry.} Rf4 29. exd6 (29. Rxd6 Bxe5 30. Rd3 Bc6 $15)) 28... Ne5 $2 {[%emt 0:00:07] Weighted Error Value: White=0.65/Black=0.32} ({Weaker is} 28... Rxf2 29. Rxf2 Rxf2 30. Qg3 $11) (28... Nf4 $1 $19 {[%cal Rf4g2]} 29. Rg3 Rg6) 1/2-1/2